bitfinex-derivatives/quotes_BTCF0:USTF0_20250609
["timestamp","ask_amount","ask_price","bid_price","bid_amount"]
[1749504652282,0.08987855,110180.0,110170.0,0.60601329]
[1749504652583,7.855e-05,110180.0,110170.0,0.70134563]
[1749504652783,0.00013575,110190.0,110170.0,1.13136318]
[1749504652977,0.00013575,110190.0,110180.0,0.5422159]
[1749504653281,0.00013575,110190.0,110180.0,0.77054678]
[1749504653682,0.00053575,110190.0,110180.0,0.77054678]
[1749504653880,0.00060306,110190.0,110180.0,0.77054678]
[1749504654278,0.00060306,110190.0,110180.0,0.77073666]
[1749504654481,0.00060306,110190.0,110180.0,0.87773666]
[1749504654675,0.00060306,110190.0,110180.0,0.90705896]
[1749504654876,6e-08,110190.0,110180.0,1.32367893]
[1749504655075,0.00040006,110190.0,110180.0,1.97178197]
[1749504655678,0.00040006,110190.0,110180.0,1.71929949]
[1749504655882,0.00040006,110190.0,110180.0,1.9412885]
[1749504656080,0.00040006,110190.0,110180.0,1.5804885]
[1749504656481,0.00013575,110200.0,110190.0,0.1813992]
[1749504656682,1.4059595,110240.0,110210.0,0.1813625]
[1749504656980,1.5,110230.0,110220.0,0.05414348]
[1749504657184,1.6987,110230.0,110220.0,0.1059987]
[1749504657580,1.6987625,110230.0,110220.0,0.6481487]
[1749504657878,1.6987625,110230.0,110220.0,0.67522044]
[1749504658184,1.6991625,110230.0,110220.0,0.67522044]
[1749504658978,1.6991625,110230.0,110220.0,0.70232034]
[1749504659185,1.6102625,110230.0,110220.0,1.03596571]
[1749504659380,1.5000625,110230.0,110220.0,1.15782034]
[1749504659581,1.5004625,110230.0,110220.0,1.15782034]
[1749504659879,1.5000625,110230.0,110220.0,1.20872519]
[1749504660074,0.0004625,110230.0,110220.0,1.20872519]
[1749504660282,0.0004625,110230.0,110220.0,1.29944519]
[1749504660577,0.22312,110270.0,110260.0,0.1812842]
[1749504660886,0.22192,110270.0,110260.0,0.7291155]
[1749504661186,0.1108,110270.0,110260.0,0.8197551]
[1749504661385,0.1117,110280.0,110270.0,0.1812665]
[1749504661578,0.2221,110280.0,110270.0,0.23312172]
[1749504661774,0.40335,110280.0,110270.0,0.05185522]
[1749504661979,0.40335,110280.0,110230.0,0.05403387]
[1749504661980,0.0453248,110250.0,110230.0,0.05403387]
[1749504662275,0.1813816,110200.0,110190.0,0.19466912]
[1749504662480,1.3805016,110200.0,110190.0,0.02316912]
[1749504662679,0.090752,110200.0,110190.0,0.02316912]
[1749504662887,1.7216933,110200.0,110190.0,0.02316912]
[1749504663281,1.181712,110200.0,110180.0,0.04558594]
[1749504663581,1.20216,110200.0,110180.0,0.27234184]
[1749504663781,0.0004,110200.0,110190.0,0.1813981]
[1749504663984,1e-08,110210.0,110200.0,0.1813817]
[1749504664285,0.84092,110250.0,110230.0,0.1359927]
[1749504664484,0.84092,110250.0,110220.0,0.4514693]
[1749504664689,0.94492,110250.0,110240.0,0.1813159]
[1749504664877,0.94492,110250.0,110240.0,0.5421159]
[1749504665078,0.72352,110250.0,110240.0,0.5421159]
[1749504665487,1.09978,110260.0,110250.0,0.1813]
[1749504665488,0.87794,110260.0,110250.0,0.1813]
[1749504665682,1.0308,110260.0,110250.0,0.5421]
[1749504665881,1.0308,110260.0,110250.0,0.2901]
[1749504666084,0.0040566,110270.0,110260.0,0.1812836]
[1749504666388,0.0040566,110270.0,110260.0,0.2900836]
[1749504666589,0.0044566,110270.0,110260.0,0.2900836]
[1749504666887,0.0044566,110270.0,110260.0,0.6508836]
[1749504667292,0.0044566,110270.0,110260.0,1.1194836]
[1749504667483,0.0040566,110270.0,110260.0,1.1194836]
[1749504667686,0.0044566,110270.0,110260.0,0.2166]
[1749504667884,0.0044566,110270.0,110260.0,0.1812834]
[1749504668092,0.2172566,110270.0,110260.0,0.1812834]
[1749504668490,0.2162566,110270.0,110260.0,0.1812834]
[1749504668792,0.2162566,110270.0,110260.0,0.5420834]
[1749504669183,0.0034566,110270.0,110260.0,0.6498834]
[1749504669384,0.0030566,110270.0,110260.0,0.7616834]
[1749504669693,0.0034566,110270.0,110260.0,0.7616834]
[1749504670190,0.0034566,110270.0,110260.0,0.2196]
[1749504670386,0.664175,110270.0,110240.0,0.5874395]
[1749504670580,0.4514545,110250.0,110230.0,0.00013575]
[1749504670792,1.228656,110240.0,110230.0,0.00013575]
[1749504671485,1.589456,110240.0,110230.0,0.00013575]
[1749504672291,1.589456,110240.0,110190.0,0.3608]
[1749504672292,0.0453448,110210.0,110190.0,0.3608]
[1749504672493,0.1813818,110200.0,110190.0,0.6530938]
[1749504672691,0.8872678,110210.0,110190.0,0.7891325]
[1749504672886,0.9996637,110210.0,110190.0,0.6984348]
[1749504673090,0.181382,110200.0,110190.0,0.6984348]
[1749504673292,0.181382,110200.0,110190.0,0.8094348]
[1749504673487,0.181382,110200.0,110190.0,0.5827]
[1749504673789,0.1813984,110190.0,110180.0,0.18164984]
[1749504673989,0.1813984,110190.0,110180.0,0.11113564]
[1749504674293,0.1813984,110190.0,110180.0,0.29255054]
[1749504674492,0.1813984,110190.0,110180.0,0.40355054]
[1749504675787,0.1813984,110190.0,110180.0,0.76435054]
[1749504676184,0.1813984,110190.0,110180.0,0.76435044]
[1749504676384,0.1813984,110190.0,110180.0,0.40355044]
[1749504676792,0.1813984,110190.0,110180.0,0.00023564]
[1749504677097,0.2847984,110190.0,110180.0,0.00023564]
[1749504677298,0.8963984,110190.0,110180.0,0.46753564]
[1749504677500,0.1813984,110190.0,110180.0,1.00975004]
[1749504677698,0.1813984,110190.0,110180.0,1.12025004]
[1749504677901,0.1817984,110190.0,110180.0,1.12025004]
[1749504679102,0.1813818,110200.0,110190.0,0.2720783]
[1749504679400,0.44180935,110210.0,110200.0,0.1813818]
[1749504679693,0.00013575,110210.0,110200.0,0.7620818]
[1749504679894,0.3963085,110220.0,110210.0,0.2720431]
[1749504680101,0.3963085,110220.0,110210.0,0.8527431]
[1749504680294,0.3963085,110220.0,110210.0,0.4919431]
[1749504680601,0.3963085,110220.0,110210.0,0.762065]
[1749504681000,0.3963085,110220.0,110210.0,0.401265]
[1749504681201,0.3963085,110220.0,110210.0,0.762065]
[1749504681801,0.1813485,110220.0,110210.0,0.762065]
[1749504682296,0.3078626,110240.0,110220.0,0.1813485]
[1749504682501,0.9005783,110240.0,110230.0,0.3608]
[1749504682700,0.2719783,110240.0,110230.0,0.4748]
[1749504682906,1.0028992,110250.0,110240.0,0.1813025]
[1749504683106,1.0028992,110250.0,110240.0,0.7607025]
[1749504683299,1.0028992,110250.0,110240.0,0.5794]
[1749504683499,1.0028992,110250.0,110240.0,0.7607157]
[1749504684406,0.3962592,110250.0,110240.0,0.7607157]
[1749504684599,1.0014192,110250.0,110240.0,0.5794]
[1749504684997,1.0014192,110250.0,110240.0,0.2186]
[1749504685198,1.0014192,110250.0,110230.0,0.00013575]
[1749504685199,0.1813156,110240.0,110230.0,0.00013575]
[1749504685395,0.0453448,110210.0,110180.0,9.989e-05]
[1749504685705,1.1373985,110200.0,110180.0,0.37581569]
[1749504685902,1.6813981,110190.0,110180.0,0.21199989]
[1749504686108,1.6813981,110190.0,110180.0,0.39341439]
[1749504686302,1.5,110190.0,110180.0,0.39341439]
[1749504686501,1.6854547,110190.0,110180.0,0.21199989]
[1749504686806,1.6854547,110190.0,110180.0,0.75421449]
[1749504687105,1.6854547,110190.0,110180.0,0.57279989]
[1749504687300,1.6854547,110190.0,110180.0,0.75421449]
[1749504687498,1.6854547,110190.0,110180.0,0.21199989]
[1749504687900,1.6854547,110190.0,110180.0,0.36494571]
[1749504688403,1.6854547,110190.0,110180.0,0.72574571]
[1749504688704,2.2962547,110190.0,110180.0,0.15304571]
[1749504688907,2.6016147,110190.0,110180.0,0.1256637]
[1749504689103,2.6016147,110190.0,110180.0,0.0845878]
[1749504690397,2.6016147,110190.0,110180.0,0.04350526]
[1749504691002,0.1814145,110180.0,110170.0,1e-08]
[1749504691203,0.1814309,110170.0,110160.0,0.04108254]
[1749504691411,1.2723309,110170.0,110160.0,0.05299003]
[1749504691609,1.3631069,110170.0,110160.0,0.05326122]
[1749504691808,1.3291069,110170.0,110160.0,0.05326122]
[1749504692105,1.6814474,110160.0,110150.0,0.04121829]
[1749504692304,2.7509074,110160.0,110150.0,0.0959884]
[1749504692505,0.1814803,110140.0,110130.0,0.20729855]
[1749504692701,1.35051049,110140.0,110130.0,0.12514011]
[1749504692905,1.55381049,110140.0,110130.0,0.07037]
[1749504693199,1.80381049,110140.0,110130.0,0.07037]
[1749504693406,1.87576769,110140.0,110130.0,0.07037]
[1749504693705,0.1814968,110130.0,110120.0,1e-08]
[1749504693902,0.6547968,110130.0,110120.0,1e-08]
[1749504694104,0.9956048,110130.0,110120.0,1e-08]
[1749504694310,0.1815463,110100.0,110090.0,0.24592855]
[1749504694499,1.4012663,110100.0,110090.0,0.1085]
[1749504694812,0.1815628,110090.0,110080.0,0.109]
[1749504695007,0.1815793,110080.0,110070.0,0.52911011]
[1749504695204,0.7804993,110080.0,110070.0,0.52911011]
[1749504695410,0.78059313,110080.0,110070.0,0.52911011]
[1749504695610,0.78059313,110080.0,110070.0,0.36534]
[1749504695804,0.78059313,110080.0,110070.0,0.00454]
[1749504696003,1.25689313,110080.0,110070.0,0.00454]
[1749504696210,0.89609313,110080.0,110070.0,0.00454]
[1749504696912,0.82223486,110080.0,110070.0,0.00454]
[1749504697106,0.1815958,110070.0,110060.0,0.07250493]
[1749504697304,0.5074758,110070.0,110060.0,0.43330493]
[1749504697606,0.9591318,110070.0,110060.0,0.07250493]
[1749504697804,1.2091318,110070.0,110060.0,0.07250493]
[1749504698002,0.99996251,110070.0,110060.0,0.07250493]
[1749504698203,1.60736251,110070.0,110060.0,0.07250493]
[1749504698517,1.96816251,110070.0,110060.0,0.07250493]
[1749504699008,1.75876251,110070.0,110060.0,0.07250493]
[1749504699211,1.96812251,110070.0,110060.0,0.07250493]
[1749504700110,0.1816454,110040.0,110030.0,0.01389206]
[1749504700317,0.0454196,110020.0,109990.0,0.13692855]
[1749504700504,0.0454312,110000.0,109990.0,0.3608]
[1749504700705,0.90845879,110000.0,109990.0,0.4689]
[1749504700908,0.181728,109990.0,109980.0,0.1155]
[1749504701315,0.18182844,109990.0,109980.0,0.1155]
[1749504701521,0.18222844,109990.0,109980.0,0.2236]
[1749504701817,0.54302844,109990.0,109980.0,0.1081]
[1749504702004,0.1817445,109980.0,109970.0,0.00013637]
[1749504702209,1.3413445,109980.0,109970.0,7e-08]
[1749504702508,0.1817941,109950.0,109940.0,0.10747216]
[1749504702709,0.98089941,109950.0,109940.0,0.21557216]
[1749504702910,0.98089941,109950.0,109940.0,0.57637216]
[1749504703105,0.98089941,109950.0,109940.0,0.21557216]
[1749504703516,0.1818602,109910.0,109900.0,0.3658]
[1749504703706,1.3947802,109910.0,109900.0,0.1139]
[1749504704017,1.3947802,109910.0,109900.0,0.12811015]
[1749504704213,1.3947802,109910.0,109900.0,0.12811036]
[1749504704607,1.84666044,109910.0,109900.0,0.005]
[1749504704810,1.95578044,109910.0,109900.0,0.01921106]
[1749504705009,1.48682044,109910.0,109900.0,0.24431106]
[1749504705210,1.56066357,109910.0,109900.0,0.12811106]
[1749504705510,1.56066357,109910.0,109900.0,0.01921106]
[1749504705727,1.56066357,109910.0,109890.0,0.36089194]
[1749504705728,0.1818767,109900.0,109890.0,9.194e-05]
[1749504705926,0.6183767,109900.0,109890.0,9.194e-05]
[1749504706214,0.96054399,109900.0,109890.0,4e-08]
[1749504707508,1.51282399,109900.0,109890.0,4e-08]
[1749504708119,1.76282399,109900.0,109890.0,4e-08]
[1749504708413,0.1819098,109880.0,109870.0,0.1062]
[1749504708620,0.7804298,109880.0,109870.0,0.2151]
[1749504708914,0.181943,109860.0,109850.0,6.822e-05]
[1749504709114,0.5881771,109890.0,109850.0,0.62925562]
[1749504709315,0.47557529,109900.0,109880.0,0.4062751]
[1749504709316,7.529e-05,109900.0,109880.0,0.4062751]
[1749504709510,0.20405166,109900.0,109890.0,0.3608]
[1749504709709,0.20384,109930.0,109920.0,0.1818425]
[1749504709908,0.02764,109930.0,109920.0,0.9034437]
[1749504710119,0.23612,109940.0,109930.0,0.1818272]
[1749504710313,0.1576373,109980.0,109940.0,0.0909018]
[1749504710514,0.5879514,110000.0,109970.0,0.5425567]
[1749504710721,0.2039415,109990.0,109980.0,0.5425447]
[1749504710918,0.2039415,109990.0,109980.0,0.3608]
[1749504711119,0.0277415,109990.0,109980.0,0.5425447]
[1749504711315,0.59418047,110000.0,109980.0,0.5425447]
[1749504711316,1.21617637,110000.0,109980.0,0.3608]
[1749504711619,0.18225187,110000.0,109990.0,0.3608]
[1749504711810,0.25528592,110010.0,109990.0,0.58796]
[1749504712009,0.1817015,110010.0,110000.0,0.3608]
[1749504712319,0.0908351,110030.0,110010.0,0.1816913]
[1749504712514,0.8886495,110040.0,110020.0,0.3608]
[1749504712714,0.8886495,110040.0,110030.0,0.3608]
[1749504712715,0.8432342,110040.0,110030.0,0.3608]
[1749504712916,0.1816621,110030.0,110020.0,0.00013637]
[1749504713114,0.2549918,110030.0,110020.0,0.36093637]
[1749504713309,0.25509124,110030.0,110020.0,0.36093637]
[1749504713807,0.1816621,110030.0,110020.0,0.00013637]
[1749504714007,0.7821021,110030.0,110020.0,0.00013637]
[1749504714216,0.7821021,110030.0,110020.0,0.36093637]
[1749504714420,0.7821021,110030.0,110020.0,7e-08]
[1749504714421,1.1429021,110030.0,110020.0,7e-08]
[1749504714621,1.4587901,110030.0,110020.0,7e-08]
[1749504714818,0.1817612,109970.0,109960.0,0.478]
[1749504715016,0.1817612,109970.0,109960.0,0.7216]
[1749504715316,0.1817612,109970.0,109960.0,1.24430289]
[1749504715516,0.2726306,109980.0,109970.0,0.1817612]
[1749504715724,0.1817447,109980.0,109970.0,0.3608]
[1749504716021,0.1817447,109980.0,109970.0,0.5425612]
[1749504716419,0.47659117,109990.0,109970.0,0.5880004]
[1749504716621,0.52202727,109990.0,109980.0,0.3608]
[1749504716813,0.1817612,109970.0,109960.0,0.54271307]
[1749504717018,0.1817612,109970.0,109960.0,0.36093637]
[1749504717216,0.1363178,109980.0,109960.0,0.54271407]
[1749504717423,0.2726229,109980.0,109970.0,0.3608]
[1749504717917,0.84845157,109990.0,109970.0,0.5880011]
[1749504717918,0.89320767,109990.0,109970.0,0.5880011]
[1749504718118,0.1817447,109980.0,109970.0,0.5880011]
[1749504718321,0.27274317,109990.0,109970.0,0.9942318]
[1749504718527,1.07478317,109990.0,109980.0,0.3608]
[1749504719021,1.07478317,109990.0,109980.0,0.5425446]
[1749504719424,1.07478317,109990.0,109980.0,0.3608]
[1749504719621,0.0454386,109980.0,109970.0,0.3608]
[1749504719928,0.1817612,109970.0,109960.0,0.36093637]
[1749504720232,0.1817612,109970.0,109960.0,0.37300564]
[1749504720527,0.1817612,109970.0,109960.0,0.38725361]
[1749504720732,0.7782012,109970.0,109960.0,0.37513682]
[1749504721126,0.7782012,109970.0,109960.0,0.35585053]
[1749504721318,0.8004,109970.0,109950.0,0.4062477]
[1749504721518,0.41237637,109990.0,109960.0,0.4062444]
[1749504721730,1.44021837,109990.0,109980.0,0.3608]
[1749504722325,1.44028534,109990.0,109980.0,0.3608]
[1749504723123,0.00020334,109990.0,109980.0,0.5425447]
[1749504723322,0.18193144,109990.0,109980.0,0.5425447]
[1749504723529,0.00020334,109990.0,109980.0,0.5425447]
[1749504723724,0.42195148,110030.0,110000.0,0.0908529]
[1749504723931,0.27745758,110030.0,110010.0,0.451645]
[1749504724123,0.59728,110020.0,110010.0,0.587905]
[1749504724433,0.07365758,110030.0,110020.0,0.1816786]
[1749504724724,0.80088,110030.0,110020.0,0.1816786]
[1749504724922,0.8007425,110030.0,110020.0,0.5424786]
[1749504725123,6.25e-05,110030.0,110020.0,0.5424786]
[1749504726125,6.25e-05,110030.0,110020.0,0.59724871]
[1749504726521,6.25e-05,110030.0,110020.0,0.64052033]
[1749504726729,0.2038,110060.0,110030.0,0.0454138]
[1749504726924,0.87194575,110060.0,110050.0,0.1816291]
[1749504727124,0.87194575,110060.0,110050.0,0.5424291]
[1749504727430,0.5716351,110080.0,110050.0,0.5424291]
[1749504727431,1.4831436,110080.0,110070.0,0.1815961]
[1749504727828,1.4374246,110080.0,110070.0,0.5423961]
[1749504728024,0.20389637,110090.0,110080.0,0.1815796]
[1749504728233,0.1815796,110080.0,110070.0,0.16457162]
[1749504728424,0.29468387,110090.0,110080.0,0.1815796]
[1749504728425,0.59026117,110090.0,110080.0,0.1815796]
[1749504728626,0.66275995,110090.0,110080.0,0.1815796]
[1749504728827,0.00013637,110090.0,110080.0,0.70695122]
[1749504729027,0.20376,110110.0,110100.0,0.1815466]
[1749504729222,0.20376,110110.0,110100.0,0.9031466]
[1749504729434,0.20376,110150.0,110130.0,0.0453728]
[1749504729633,0.4305967,110150.0,110140.0,0.7093491]
[1749504729831,0.4305967,110150.0,110140.0,0.1217]
[1749504730028,0.9805842,110150.0,110140.0,0.709349]
[1749504730237,0.9801842,110150.0,110140.0,0.6639807]
[1749504730536,0.9817042,110150.0,110140.0,0.3031807]
[1749504730734,0.9813042,110150.0,110140.0,0.1217]
[1749504731035,0.9817042,110150.0,110140.0,0.4825]
[1749504731224,0.80024,110150.0,110140.0,0.6639807]
[1749504731425,0.9813042,110150.0,110140.0,0.6639807]
[1749504732434,0.87171409,110150.0,110140.0,0.7877807]
[1749504732741,1.05317839,110150.0,110140.0,0.7877807]
[1749504732928,0.45709839,110150.0,110140.0,0.7877807]
[1749504733128,0.0004,110150.0,110140.0,0.7877807]
[1749504734029,0.1814642,110150.0,110140.0,0.3608]
[1749504734224,0.0453818,110120.0,110110.0,0.3608]
[1749504734429,0.0453874,110100.0,110070.0,0.3608]
[1749504734629,0.0907957,110080.0,110060.0,0.1173]
[1749504734831,0.0907957,110080.0,110040.0,0.3608]
[1749504734832,0.1816293,110050.0,110040.0,0.3608]
[1749504735036,0.1816128,110060.0,110050.0,0.1173]
[1749504735236,0.18168085,110060.0,110050.0,0.4899]
[1749504735436,0.42788085,110060.0,110050.0,0.6715293]
[1749504735639,6.805e-05,110060.0,110050.0,0.4899]
[1749504735833,0.18168085,110060.0,110050.0,0.4899]
[1749504736033,0.18168085,110060.0,110050.0,0.6715293]
[1749504736034,0.18208085,110060.0,110050.0,0.6715293]
[1749504736437,0.18208085,110060.0,110050.0,0.4899]
[1749504736931,0.18208085,110060.0,110050.0,0.3608]
[1749504737136,0.18208085,110060.0,110040.0,0.77928217]
[1749504737137,0.1816293,110050.0,110040.0,0.77928217]
[1749504737338,0.1816293,110050.0,110040.0,1.14008217]
[1749504737942,0.1816293,110050.0,110040.0,0.72173637]
[1749504738250,0.6237293,110050.0,110040.0,0.01376637]
[1749504738745,0.69549132,110050.0,110040.0,0.01376637]
[1749504739149,0.69589132,110050.0,110040.0,0.01376637]
[1749504739446,6.805e-05,110060.0,110050.0,0.1816293]
[1749504739635,0.00013637,110070.0,110060.0,0.1816128]
[1749504739837,0.6551853,110140.0,110100.0,0.0453832]
[1749504740039,0.1577801,110120.0,110100.0,0.04321284]
[1749504740340,0.2939138,110120.0,110110.0,0.5423303]
[1749504740538,0.4235138,110120.0,110110.0,0.41750629]
[1749504740841,0.4235138,110120.0,110110.0,0.05670629]
[1749504741046,0.3845138,110120.0,110110.0,0.40401284]
[1749504741248,0.3845138,110120.0,110110.0,0.41750487]
[1749504741545,0.3845138,110120.0,110110.0,0.04321284]
[1749504741939,0.4298926,110120.0,110110.0,0.05670495]
[1749504742145,0.3845138,110120.0,110110.0,0.19502241]
[1749504742346,0.3845138,110120.0,110110.0,0.19507899]
[1749504742541,0.3845138,110120.0,110110.0,0.1815303]
[1749504742747,0.45765613,110120.0,110100.0,0.79395701]
[1749504742948,0.45765613,110120.0,110100.0,0.91215701]
[1749504743140,0.50303453,110120.0,110100.0,0.91215701]
[1749504743336,0.50303453,110120.0,110110.0,0.3608]
[1749504743540,0.50303453,110120.0,110100.0,0.55135701]
[1749504743741,0.54841423,110120.0,110100.0,0.56489325]
[1749504744042,0.54841423,110120.0,110100.0,0.92569301]
[1749504744243,0.54841423,110120.0,110100.0,0.51950642]
[1749504744447,0.54841423,110120.0,110100.0,0.91215701]
[1749504744743,0.9780102,110110.0,110100.0,0.40414921]
[1749504744946,0.1815467,110100.0,110090.0,0.00454]
[1749504745243,0.6648467,110100.0,110090.0,0.00454]
[1749504745838,0.3040467,110100.0,110090.0,0.00454]
[1749504746041,0.1815632,110090.0,110080.0,0.00013637]
[1749504746236,0.1856693,110060.0,110050.0,0.3608]
[1749504746444,0.1816293,110050.0,110040.0,0.57809316]
[1749504746644,0.7727893,110050.0,110040.0,0.37443]
[1749504746841,0.7727893,110050.0,110040.0,0.01363]
[1749504747042,1.2609893,110050.0,110040.0,0.01363]
[1749504747244,0.9001893,110050.0,110040.0,0.01363]
[1749504747546,1.1029493,110050.0,110040.0,0.01363]
[1749504747938,1.1033493,110050.0,110040.0,0.01363]
[1749504748443,0.38940677,110060.0,110050.0,0.1816292]
[1749504748750,0.38940677,110060.0,110050.0,0.3608]
[1749504748751,0.97928677,110060.0,110050.0,0.3608]
[1749504748943,0.97968677,110060.0,110050.0,0.488]
[1749504749643,0.1816295,110050.0,110040.0,0.82793391]
[1749504749846,0.1816295,110050.0,110040.0,0.38543916]
[1749504750047,0.1816295,110050.0,110040.0,0.87343916]
[1749504750243,0.1816295,110050.0,110040.0,0.51263916]
[1749504750450,0.1816295,110050.0,110040.0,0.52615161]
[1749504750640,0.1816295,110050.0,110040.0,0.88695161]
[1749504750950,0.1816295,110050.0,110040.0,0.88698578]
[1749504751151,0.1816295,110050.0,110040.0,0.96868053]
[1749504751351,0.1816295,110050.0,110040.0,0.95513391]
[1749504751544,0.1816295,110050.0,110040.0,0.65131712]
[1749504751740,0.1816295,110050.0,110040.0,0.91907075]
[1749504751940,0.1816295,110050.0,110040.0,0.93261718]
[1749504752146,0.1816295,110050.0,110040.0,0.93261723]
[1749504752650,0.00459297,110060.0,110050.0,0.1816295]
[1749504752952,0.97036857,110060.0,110050.0,0.63809062]
[1749504753153,0.97076857,110060.0,110050.0,0.91942229]
[1749504753353,0.97076857,110060.0,110050.0,0.83733508]
[1749504753542,0.97076857,110060.0,110050.0,0.90589248]
[1749504753746,0.97076857,110060.0,110050.0,0.91949804]
[1749504753947,0.97076857,110060.0,110050.0,0.94626139]
[1749504754451,0.96671197,110060.0,110050.0,0.94626139]
[1749504754753,0.96671197,110060.0,110050.0,0.93265583]
[1749504754948,1.11371197,110060.0,110050.0,0.77428902]
[1749504755254,1.11371197,110060.0,110050.0,0.41348991]
[1749504755454,1.11371197,110060.0,110050.0,0.78791991]
[1749504756047,1.11371197,110060.0,110050.0,0.84461924]
[1749504756248,1.11371197,110060.0,110050.0,0.93988563]
[1749504756551,1.11371197,110060.0,110050.0,0.75825633]
[1749504756850,1.11371197,110060.0,110050.0,0.39749388]
[1749504757050,1.11371197,110060.0,110050.0,0.28856755]
[1749504757246,1.6387932,110060.0,110050.0,0.16629012]
[1749504757451,1.6387932,110060.0,110050.0,0.11145109]
[1749504757650,0.1816293,110050.0,110040.0,0.09598696]
[1749504757849,0.6915293,110050.0,110040.0,0.13708869]
[1749504758054,0.3307293,110050.0,110040.0,0.13708869]
[1749504758259,0.4781293,110050.0,110040.0,0.05483903]
[1749504758552,0.4821859,110050.0,110040.0,0.05483903]
[1749504761050,0.1816458,110040.0,110030.0,0.67968466]
[1749504761254,1.0383658,110040.0,110030.0,0.13722506]
[1749504761459,1.0383658,110040.0,110030.0,0.31888736]
[1749504761657,1.0383658,110040.0,110030.0,0.13722506]
[1749504761851,1.0383658,110040.0,110030.0,0.0549754]
[1749504762154,1.0383658,110040.0,110030.0,0.00013637]
[1749504762351,1.0383658,110040.0,110030.0,0.0549754]
[1749504762758,1.0383658,110040.0,110030.0,0.4157754]
[1749504764353,1.0383658,110040.0,110030.0,0.49802506]
[1749504764956,1.3991658,110040.0,110030.0,0.0549754]
[1749504765362,0.1816788,110020.0,110010.0,0.05483903]
[1749504765657,0.1816788,110020.0,110000.0,0.13708869]
[1749504765658,0.1816953,110010.0,110000.0,0.13708869]
[1749504765859,0.4591953,110010.0,110000.0,0.13708869]
[1749504766254,0.4591953,110010.0,110000.0,0.05483903]
[1749504766454,0.4592595,110010.0,110000.0,0.05483903]
[1749504766956,0.4592595,110010.0,110000.0,0.0669036]
[1749504767263,0.1817118,110000.0,109990.0,0.44304966]
[1749504767458,6.42e-05,110010.0,109990.0,0.49797334]
[1749504767660,0.7660242,110010.0,110000.0,0.91636146]
[1749504767860,0.7660242,110010.0,110000.0,0.8341118]
[1749504768459,0.9477195,110010.0,110000.0,0.13721398]
[1749504768766,6.42e-05,110010.0,110000.0,0.60938614]
[1749504768964,0.9492795,110010.0,110000.0,0.78961398]
[1749504769264,0.9494395,110010.0,110000.0,0.61052578]
[1749504769466,0.9494395,110010.0,110000.0,0.52820246]
[1749504769662,0.9494395,110010.0,110000.0,0.94484416]
[1749504770165,0.1817595,110010.0,110000.0,0.94485955]
[1749504770361,0.1817595,110010.0,110000.0,0.94485953]
[1749504770554,0.1817595,110010.0,110000.0,1.02718287]
[1749504770555,0.0041208,110010.0,110000.0,1.02718287]
[1749504770762,0.0041208,110010.0,110000.0,0.98516379]
[1749504771157,0.0045208,110010.0,110000.0,1.0256938]
[1749504771362,0.0045208,110010.0,110000.0,1.13548431]
[1749504771562,0.0045208,110010.0,110000.0,0.88996341]
[1749504771764,0.0045208,110010.0,110000.0,1.02569403]
[1749504772064,0.0041208,110010.0,110000.0,1.01196808]
[1749504772265,0.1862161,110010.0,110000.0,1.02569551]
[1749504772466,0.1862161,110010.0,110000.0,1.01196808]
[1749504772764,0.0045208,110010.0,110000.0,1.23086858]
[1749504772964,0.0041208,110010.0,110000.0,1.3407197]
[1749504773164,0.0041208,110010.0,110000.0,1.3665992]
[1749504773672,0.0045208,110010.0,110000.0,1.3665992]
[1749504773864,0.0045208,110010.0,110000.0,1.54289495]
[1749504774164,0.27267287,110020.0,110010.0,0.1816953]
[1749504774365,0.27267287,110020.0,110010.0,1.0166843]
[1749504774764,0.22724957,110020.0,110010.0,1.0166843]
[1749504774967,0.00013637,110020.0,110010.0,1.0166843]
[1749504775470,0.18181517,110020.0,110010.0,1.01670113]
[1749504775670,0.00013637,110020.0,110010.0,1.01670109]
[1749504775863,0.00013637,110020.0,110010.0,1.01670119]
[1749504776060,0.00013637,110020.0,110010.0,1.01670116]
[1749504776262,0.00013637,110020.0,110010.0,1.01670114]
[1749504776567,0.00013637,110020.0,110010.0,1.34128371]
[1749504776869,0.00013637,110020.0,110010.0,1.34128384]
[1749504777365,0.00013637,110020.0,110010.0,0.87913805]
[1749504777566,0.00013637,110020.0,110010.0,1.341287]
[1749504777771,0.00013637,110020.0,110010.0,1.34128705]
[1749504778171,0.00013637,110020.0,110010.0,1.34128709]
[1749504779270,0.18181517,110020.0,110010.0,1.00318418]
[1749504779470,0.18181517,110020.0,110010.0,0.98927864]
[1749504779673,0.18181517,110020.0,110010.0,0.98928059]
[1749504779866,0.18181517,110020.0,110010.0,0.98928106]
[1749504780268,0.93501517,110020.0,110010.0,0.98928106]
[1749504780874,0.93477517,110020.0,110010.0,0.98927355]
[1749504781283,0.93477517,110020.0,110010.0,0.98927419]
[1749504781482,0.93477517,110020.0,110010.0,0.61498955]
[1749504781780,0.93477517,110020.0,110010.0,0.9892757]
[1749504781986,0.18181517,110020.0,110010.0,0.8075804]
[1749504782187,1.23031517,110020.0,110010.0,0.9892757]
[1749504782377,1.23031517,110020.0,110010.0,0.87910705]
[1749504782578,1.23031517,110020.0,110010.0,0.9617658]
[1749504782779,1.23031517,110020.0,110010.0,0.87910662]
[1749504783084,1.23031517,110020.0,110010.0,0.87911551]
[1749504783280,1.23031517,110020.0,110010.0,0.78009093]
[1749504783481,1.23031517,110020.0,110010.0,0.49909093]
[1749504783683,1.23031517,110020.0,110010.0,0.55421339]
[1749504783985,1.55489774,110020.0,110010.0,0.5542147]
[1749504784284,2.25659374,110020.0,110010.0,0.0556225]
[1749504784590,0.1816953,110010.0,110000.0,0.05512246]
[1749504784892,0.1817449,109980.0,109970.0,0.32758609]
[1749504785087,0.1817614,109970.0,109960.0,9.163e-05]
[1749504785386,1.08765313,109970.0,109960.0,9.163e-05]
[1749504785687,1.17858913,109970.0,109960.0,9.163e-05]
[1749504785889,0.1817779,109960.0,109950.0,0.00332432]
[1749504786187,0.0454563,109940.0,109900.0,0.74376709]
[1749504786391,1.35579764,109930.0,109910.0,0.3827246]
[1749504786687,0.98575487,109930.0,109910.0,0.7435246]
[1749504786882,0.18193738,109920.0,109910.0,0.3008]
[1749504787078,9.328e-05,109920.0,109910.0,0.3372606]
[1749504787382,0.87230257,109960.0,109950.0,0.1817865]
[1749504787696,0.1817989,109950.0,109930.0,0.5880755]
[1749504787883,0.1817989,109950.0,109940.0,0.1449]
[1749504788079,0.6854989,109950.0,109940.0,0.1449]
[1749504788383,1.2510189,109950.0,109940.0,0.1449]
[1749504788786,0.8902189,109950.0,109940.0,0.3002]
[1749504788983,0.3246989,109950.0,109940.0,0.3002]
[1749504789486,0.8894189,109950.0,109940.0,0.3002]
[1749504789987,1.2502189,109950.0,109940.0,0.1449]
[1749504790481,1.3951189,109950.0,109940.0,0.1449]
[1749504790686,1.2502189,109950.0,109940.0,0.1449]
[1749504792179,0.181811,109940.0,109930.0,0.15543637]
[1749504792381,0.181811,109940.0,109930.0,0.14353637]